[Event "Titled Tuesday Blitz June 27 Early 2023"]
[White "Csonka, Balazs"]
[Black "Ter-Sahakyan, Samvel"]
[WhiteFideId "742910"]
[BlackFideId "13302531"]
[WhiteElo "2729"]
[BlackElo "2895"]
[Result "0-1"]
[Round "4"]
[TimeControl "180+2"]
[Date "2023.06.27"]
[WhiteClock "0:00:00"]
[BlackClock "0:00:02"]
[Board "27"]

1. e4 {[%clk 0:03:00]}  c5 {[%clk 0:02:57]} 2. Nf3 {[%clk 0:03:00]}  e6 {[%clk 0:02:57]} 3. d4 {[%clk 0:02:57]}  cxd4 {[%clk 0:02:58]} 4. Nxd4 {[%clk 0:02:57]}  Nf6 {[%clk 0:02:59]} 5. Nc3 {[%clk 0:02:57]}  Nc6 {[%clk 0:02:59]} 6. g3 {[%clk 0:02:51]}  Qc7 {[%clk 0:02:53]} 7. Ndb5 {[%clk 0:02:45]}  Qb8 {[%clk 0:02:50]} 8. Bf4 {[%clk 0:02:46]}  e5 {[%clk 0:02:43]} 9. Bg5 {[%clk 0:02:46]}  a6 {[%clk 0:02:37]} 10. Bxf6 {[%clk 0:02:45]}  gxf6 {[%clk 0:02:21]} 11. Na3 {[%clk 0:02:45]}  Bxa3 {[%clk 0:02:15]} 12. bxa3 {[%clk 0:02:45]}  Ne7 {[%clk 0:02:05]} 13. Qd2 {[%clk 0:02:14]}  Qc7 {[%clk 0:02:00]} 14. Rd1 {[%clk 0:01:56]}  b5 {[%clk 0:01:53]} 15. Bg2 {[%clk 0:01:36]}  Bb7 {[%clk 0:01:49]} 16. O-O {[%clk 0:01:31]}  O-O {[%clk 0:01:39]} 17. Qxd7 {[%clk 0:01:22]}  Rac8 {[%clk 0:01:36]} 18. Qg4+ {[%clk 0:01:11]}  Ng6 {[%clk 0:01:35]} 19. Nd5 {[%clk 0:01:00]}  Bxd5 {[%clk 0:01:35]} 20. Rxd5 {[%clk 0:00:57]}  Qxc2 {[%clk 0:01:32]} 21. h4 {[%clk 0:00:56]}  Kh8 {[%clk 0:01:25]} 22. h5 {[%clk 0:00:54]}  Ne7 {[%clk 0:01:26]} 23. Rd7 {[%clk 0:00:51]}  Rc7 {[%clk 0:01:20]} 24. Rfd1 {[%clk 0:00:31]}  h6 {[%clk 0:01:18]} 25. Qh4 {[%clk 0:00:26]}  Ng8 {[%clk 0:01:03]} 26. Bh3 {[%clk 0:00:14]}  Rxd7 {[%clk 0:00:53]} 27. Rxd7 {[%clk 0:00:15]}  Qxa2 {[%clk 0:00:49]} 28. Bf5 {[%clk 0:00:15]}  Qxa3 {[%clk 0:00:48]} 29. Kg2 {[%clk 0:00:10]}  Qc1 {[%clk 0:00:42]} 30. Qg4 {[%clk 0:00:09]}  b4 {[%clk 0:00:36]} 31. Be6 {[%clk 0:00:06]}  Qg5 {[%clk 0:00:33]} 32. Qxg5 {[%clk 0:00:06]}  fxg5 {[%clk 0:00:30]} 33. Bxf7 {[%clk 0:00:06]}  Nf6 {[%clk 0:00:30]} 34. Ra7 {[%clk 0:00:07]}  Nxe4 {[%clk 0:00:28]} 35. Bg6 {[%clk 0:00:04]}  Rxf2+ {[%clk 0:00:21]} 36. Kg1 {[%clk 0:00:03]}  Re2 {[%clk 0:00:22]} 37. Rxa6 {[%clk 0:00:03]}  Nxg3 {[%clk 0:00:17]} 38. Rb6 {[%clk 0:00:02]}  Rb2 {[%clk 0:00:16]} 39. Bd3 {[%clk 0:00:01]}  Kg7 {[%clk 0:00:13]} 40. Rg6+ {[%clk 0:00:01]}  Kf7 {[%clk 0:00:13]} 41. Rxh6 {[%clk 0:00:01]}  e4 {[%clk 0:00:11]} 42. Bc4+ {[%clk 0:00:02]}  Kg7 {[%clk 0:00:09]} 43. Rg6+ {[%clk 0:00:02]}  Kh7 {[%clk 0:00:10]} 44. Rxg5 {[%clk 0:00:03]}  Ne2+ {[%clk 0:00:08]} 45. Kf1 {[%clk 0:00:03]}  Nf4 {[%clk 0:00:07]} 46. Rf5 {[%clk 0:00:03]}  Nd3 {[%clk 0:00:06]} 47. Rf7+ {[%clk 0:00:02]}  Kh6 {[%clk 0:00:06]} 48. Re7 {[%clk 0:00:03]}  Rf2+ {[%clk 0:00:03]} 49. Kg1 {[%clk 0:00:03]}  Rf4 {[%clk 0:00:03]} 50. Rd7 {[%clk 0:00:02]}  Ne5 {[%clk 0:00:02]} 51. Bd5 {[%clk 0:00:00]}  Nxd7 {[%clk 0:00:02]} 0-1


[Site "https://www.chess.com"]

[Event "Titled Tuesday Blitz June 27 Early 2023"]
[White "Fernandez Guillen, Ernesto J."]
[Black "Beerdsen, Thomas"]
[WhiteFideId "3512428"]
[BlackFideId "1030108"]
[WhiteElo "2702"]
[BlackElo "2825"]
[Result "1/2-1/2"]
[Round "4"]
[TimeControl "180+2"]
[Date "2023.06.27"]
[WhiteClock "0:00:08"]
[BlackClock "0:00:16"]
[Board "30"]

1. e4 {[%clk 0:02:46]}  e5 {[%clk 0:02:59]} 2. Nf3 {[%clk 0:02:45]}  Nc6 {[%clk 0:03:00]} 3. d4 {[%clk 0:02:46]}  f5 {[%clk 0:03:00]} 4. Bc4 {[%clk 0:02:47]}  exd4 {[%clk 0:02:53]} 5. exf5 {[%clk 0:02:46]}  Nf6 {[%clk 0:02:52]} 6. O-O {[%clk 0:02:46]}  d5 {[%clk 0:02:51]} 7. Bd3 {[%clk 0:02:46]}  Be7 {[%clk 0:02:49]} 8. Nbd2 {[%clk 0:02:40]}  O-O {[%clk 0:02:47]} 9. Nb3 {[%clk 0:02:41]}  Ne4 {[%clk 0:02:47]} 10. Nbxd4 {[%clk 0:02:39]}  Bc5 {[%clk 0:02:45]} 11. Be3 {[%clk 0:02:13]}  Qf6 {[%clk 0:02:44]} 12. c3 {[%clk 0:02:11]}  Bd7 {[%clk 0:02:40]} 13. Nxc6 {[%clk 0:02:02]}  Bxe3 {[%clk 0:02:37]} 14. fxe3 {[%clk 0:02:02]}  Bxc6 {[%clk 0:02:34]} 15. Bxe4 {[%clk 0:02:02]}  dxe4 {[%clk 0:02:35]} 16. Nd4 {[%clk 0:02:03]}  Bd5 {[%clk 0:02:32]} 17. b4 {[%clk 0:02:00]}  Rad8 {[%clk 0:02:27]} 18. Qe2 {[%clk 0:01:59]}  b6 {[%clk 0:02:24]} 19. c4 {[%clk 0:01:59]}  Bf7 {[%clk 0:02:22]} 20. c5 {[%clk 0:01:59]}  Rd5 {[%clk 0:02:20]} 21. Rac1 {[%clk 0:01:57]}  bxc5 {[%clk 0:02:19]} 22. bxc5 {[%clk 0:01:58]}  Rb8 {[%clk 0:02:18]} 23. Kh1 {[%clk 0:01:57]}  h6 {[%clk 0:02:12]} 24. h3 {[%clk 0:01:56]}  a5 {[%clk 0:02:09]} 25. Rf4 {[%clk 0:01:55]}  Re8 {[%clk 0:02:04]} 26. Qg4 {[%clk 0:01:54]}  Kh7 {[%clk 0:02:03]} 27. Rxe4 {[%clk 0:01:52]}  Rde5 {[%clk 0:02:03]} 28. Rxe5 {[%clk 0:01:52]}  Rxe5 {[%clk 0:02:04]} 29. Qf4 {[%clk 0:01:44]}  Bxa2 {[%clk 0:02:03]} 30. Ra1 {[%clk 0:01:41]}  Bd5 {[%clk 0:02:00]} 31. Rxa5 {[%clk 0:01:40]}  Re4 {[%clk 0:02:01]} 32. Qg3 {[%clk 0:01:38]}  Qe7 {[%clk 0:01:55]} 33. Ra7 {[%clk 0:01:26]}  Rxe3 {[%clk 0:01:50]} 34. Qg6+ {[%clk 0:00:36]}  Kh8 {[%clk 0:01:50]} 35. Ne6 {[%clk 0:00:34]}  Rxh3+ {[%clk 0:00:55]} 36. Kg1 {[%clk 0:00:33]}  Bxe6 {[%clk 0:00:56]} 37. Ra8+ {[%clk 0:00:24]}  Bg8 {[%clk 0:00:56]} 38. gxh3 {[%clk 0:00:18]}  Qxc5+ {[%clk 0:00:56]} 39. Kh2 {[%clk 0:00:17]}  Qf2+ {[%clk 0:00:57]} 40. Qg2 {[%clk 0:00:17]}  Qf4+ {[%clk 0:00:53]} 41. Qg3 {[%clk 0:00:14]}  Qxf5 {[%clk 0:00:53]} 42. Qb3 {[%clk 0:00:10]}  Qf2+ {[%clk 0:00:54]} 43. Kh1 {[%clk 0:00:10]}  Qe1+ {[%clk 0:00:54]} 44. Kh2 {[%clk 0:00:09]}  Qe5+ {[%clk 0:00:53]} 45. Kg1 {[%clk 0:00:09]}  Qd4+ {[%clk 0:00:49]} 46. Kh2 {[%clk 0:00:09]}  Qf2+ {[%clk 0:00:43]} 47. Kh1 {[%clk 0:00:09]}  Qe1+ {[%clk 0:00:32]} 48. Kh2 {[%clk 0:00:08]}  Qd2+ {[%clk 0:00:33]} 49. Kg1 {[%clk 0:00:08]}  Qc1+ {[%clk 0:00:33]} 50. Kh2 {[%clk 0:00:07]}  Qd2+ {[%clk 0:00:31]} 51. Kg1 {[%clk 0:00:07]}  Qd4+ {[%clk 0:00:31]} 52. Kh2 {[%clk 0:00:07]}  Qe5+ {[%clk 0:00:20]} 53. Kg1 {[%clk 0:00:07]}  Qe1+ {[%clk 0:00:16]} 54. Kh2 {[%clk 0:00:08]} 1/2-1/2


[Site "https://www.chess.com"]

[Event "Titled Tuesday Blitz June 27 Early 2023"]
[White "Sanal, Vahap"]
[Black "Kaidanov, Gregory"]
[WhiteFideId "6300545"]
[BlackFideId "2008564"]
[WhiteElo "2949"]
[BlackElo "2645"]
[Result "1-0"]
[Round "4"]
[TimeControl "180+2"]
[Date "2023.06.27"]
[WhiteClock "0:00:44"]
[BlackClock "0:00:00"]
[Board "38"]

1. e4 {[%clk 0:02:49]}  e5 {[%clk 0:02:59]} 2. Nc3 {[%clk 0:02:49]}  Nf6 {[%clk 0:02:58]} 3. f4 {[%clk 0:02:49]}  d5 {[%clk 0:02:58]} 4. fxe5 {[%clk 0:02:49]}  Nxe4 {[%clk 0:02:59]} 5. Qf3 {[%clk 0:02:49]}  f5 {[%clk 0:02:58]} 6. d3 {[%clk 0:02:49]}  Nxc3 {[%clk 0:02:57]} 7. bxc3 {[%clk 0:02:50]}  d4 {[%clk 0:02:55]} 8. Be2 {[%clk 0:02:49]}  Nc6 {[%clk 0:02:54]} 9. Qg3 {[%clk 0:02:49]}  Be6 {[%clk 0:02:54]} 10. Nf3 {[%clk 0:02:50]}  dxc3 {[%clk 0:02:42]} 11. Be3 {[%clk 0:02:37]}  Qd7 {[%clk 0:02:39]} 12. O-O {[%clk 0:02:24]}  O-O-O {[%clk 0:02:32]} 13. Qe1 {[%clk 0:02:24]}  Bb4 {[%clk 0:02:25]} 14. Rb1 {[%clk 0:02:23]}  Ba5 {[%clk 0:02:24]} 15. a4 {[%clk 0:02:18]}  h6 {[%clk 0:02:20]} 16. h4 {[%clk 0:02:14]}  Rhf8 {[%clk 0:02:17]} 17. Qg3 {[%clk 0:02:06]}  Qf7 {[%clk 0:02:05]} 18. Qf4 {[%clk 0:01:56]}  Rg8 {[%clk 0:01:54]} 19. h5 {[%clk 0:01:54]}  Bb6 {[%clk 0:01:34]} 20. Bxb6 {[%clk 0:01:52]}  axb6 {[%clk 0:01:35]} 21. Rf2 {[%clk 0:01:41]}  g5 {[%clk 0:01:23]} 22. hxg6 {[%clk 0:01:40]}  Rxg6 {[%clk 0:01:23]} 23. Nh4 {[%clk 0:01:40]}  Rg5 {[%clk 0:01:23]} 24. Bf3 {[%clk 0:01:32]}  Nd4 {[%clk 0:01:11]} 25. a5 {[%clk 0:01:31]}  b5 {[%clk 0:01:05]} 26. Ra1 {[%clk 0:01:25]}  Qe7 {[%clk 0:00:34]} 27. a6 {[%clk 0:01:25]}  bxa6 {[%clk 0:00:33]} 28. Rxa6 {[%clk 0:01:26]}  Qb4 {[%clk 0:00:31]} 29. Rf1 {[%clk 0:01:10]}  Nxf3+ {[%clk 0:00:26]} 30. Qxf3 {[%clk 0:01:06]}  Qd4+ {[%clk 0:00:26]} 31. Qf2 {[%clk 0:01:05]}  Qxf2+ {[%clk 0:00:23]} 32. Kxf2 {[%clk 0:01:06]}  Kd7 {[%clk 0:00:22]} 33. Nf3 {[%clk 0:01:02]}  Bd5 {[%clk 0:00:18]} 34. Nxg5 {[%clk 0:01:02]}  hxg5 {[%clk 0:00:19]} 35. Rh1 {[%clk 0:01:02]}  Re8 {[%clk 0:00:16]} 36. Rh7+ {[%clk 0:01:02]}  Re7 {[%clk 0:00:17]} 37. Rxe7+ {[%clk 0:00:54]}  Kxe7 {[%clk 0:00:18]} 38. g3 {[%clk 0:00:55]}  b4 {[%clk 0:00:17]} 39. Ke3 {[%clk 0:00:56]}  c5 {[%clk 0:00:13]} 40. Ra5 {[%clk 0:00:55]}  Ke6 {[%clk 0:00:12]} 41. Rxc5 {[%clk 0:00:55]}  Kxe5 {[%clk 0:00:13]} 42. Rb5 {[%clk 0:00:54]}  f4+ {[%clk 0:00:14]} 43. gxf4+ {[%clk 0:00:55]}  gxf4+ {[%clk 0:00:14]} 44. Ke2 {[%clk 0:00:55]}  b3 {[%clk 0:00:14]} 45. cxb3 {[%clk 0:00:54]}  c2 {[%clk 0:00:14]} 46. Rc5 {[%clk 0:00:55]}  Kd4 {[%clk 0:00:13]} 47. Rxc2 {[%clk 0:00:55]}  Bxb3 {[%clk 0:00:13]} 48. Rc8 {[%clk 0:00:50]}  Bd5 {[%clk 0:00:13]} 49. Rf8 {[%clk 0:00:48]}  f3+ {[%clk 0:00:13]} 50. Kd2 {[%clk 0:00:49]}  Bc6 {[%clk 0:00:09]} 51. Rf4+ {[%clk 0:00:49]}  Ke5 {[%clk 0:00:10]} 52. Ke3 {[%clk 0:00:50]}  Bd5 {[%clk 0:00:09]} 53. d4+ {[%clk 0:00:50]}  Ke6 {[%clk 0:00:09]} 54. Kd2 {[%clk 0:00:48]}  Kd6 {[%clk 0:00:09]} 55. Ke1 {[%clk 0:00:46]}  Ke6 {[%clk 0:00:10]} 56. Kf2 {[%clk 0:00:47]}  Kd6 {[%clk 0:00:10]} 57. Kg3 {[%clk 0:00:47]}  Ke6 {[%clk 0:00:11]} 58. Kh4 {[%clk 0:00:48]}  Kd6 {[%clk 0:00:11]} 59. Kg5 {[%clk 0:00:49]}  Ke6 {[%clk 0:00:12]} 60. Rf6+ {[%clk 0:00:49]}  Ke7 {[%clk 0:00:13]} 61. Kf5 {[%clk 0:00:47]}  Kd7 {[%clk 0:00:08]} 62. Ke5 {[%clk 0:00:48]}  Bb7 {[%clk 0:00:08]} 63. d5 {[%clk 0:00:49]}  Ke7 {[%clk 0:00:07]} 64. Rxf3 {[%clk 0:00:48]}  Kd7 {[%clk 0:00:08]} 65. Rf7+ {[%clk 0:00:48]}  Kc8 {[%clk 0:00:08]} 66. d6 {[%clk 0:00:49]}  Ba6 {[%clk 0:00:06]} 67. d7+ {[%clk 0:00:47]}  Kc7 {[%clk 0:00:06]} 68. Ke6 {[%clk 0:00:47]}  Bb5 {[%clk 0:00:06]} 69. Ke7 {[%clk 0:00:48]}  Bxd7 {[%clk 0:00:06]} 70. Rf1 {[%clk 0:00:47]}  Bc6 {[%clk 0:00:06]} 71. Rc1 {[%clk 0:00:47]}  Kb7 {[%clk 0:00:07]} 72. Kd6 {[%clk 0:00:48]}  Bb5 {[%clk 0:00:07]} 73. Rb1 {[%clk 0:00:48]}  Kb6 {[%clk 0:00:08]} 74. Rb2 {[%clk 0:00:48]}  Ka6 {[%clk 0:00:07]} 75. Kc5 {[%clk 0:00:48]}  Be8 {[%clk 0:00:07]} 76. Rb8 {[%clk 0:00:48]}  Bd7 {[%clk 0:00:06]} 77. Rb6+ {[%clk 0:00:46]}  Ka7 {[%clk 0:00:07]} 78. Rb4 {[%clk 0:00:46]}  Be8 {[%clk 0:00:06]} 79. Re4 {[%clk 0:00:45]}  Bg6 {[%clk 0:00:05]} 80. Re7+ {[%clk 0:00:45]}  Kb8 {[%clk 0:00:05]} 81. Kc6 {[%clk 0:00:44]}  Bh5 {[%clk 0:00:04]} 82. Rb7+ {[%clk 0:00:44]}  Ka8 {[%clk 0:00:03]} 83. Rh7 {[%clk 0:00:43]}  Bf3+ {[%clk 0:00:03]} 84. Kb6 {[%clk 0:00:44]}  Bg4 {[%clk 0:00:00]} 85. Rh8+ {[%clk 0:00:44]} 1-0


[Site "https://www.chess.com"]

[Event "Titled Tuesday Blitz June 27 Early 2023"]
[White "Daneshvar, Bardiya"]
[Black "Ahmad, Khagan"]
[WhiteFideId "12576468"]
[BlackFideId "13431552"]
[WhiteElo "2945"]
[BlackElo "2628"]
[Result "1-0"]
[Round "4"]
[TimeControl "180+2"]
[Date "2023.06.27"]
[WhiteClock "0:00:37"]
[BlackClock "0:00:00"]
[Board "39"]

1. b3 {[%clk 0:02:56]}  Nf6 {[%clk 0:03:00]} 2. Bb2 {[%clk 0:02:57]}  e6 {[%clk 0:03:00]} 3. g3 {[%clk 0:02:56]}  d5 {[%clk 0:03:01]} 4. Bg2 {[%clk 0:02:57]}  Bd6 {[%clk 0:03:01]} 5. Nf3 {[%clk 0:02:58]}  c6 {[%clk 0:03:02]} 6. O-O {[%clk 0:02:59]}  Qe7 {[%clk 0:03:02]} 7. d3 {[%clk 0:03:00]}  Nbd7 {[%clk 0:03:03]} 8. Nbd2 {[%clk 0:03:00]}  O-O {[%clk 0:03:03]} 9. e4 {[%clk 0:03:01]}  e5 {[%clk 0:03:03]} 10. Re1 {[%clk 0:03:01]}  d4 {[%clk 0:03:04]} 11. Nc4 {[%clk 0:03:01]}  Bb4 {[%clk 0:02:59]} 12. Re2 {[%clk 0:03:00]}  b5 {[%clk 0:02:59]} 13. a3 {[%clk 0:02:58]}  bxc4 {[%clk 0:02:44]} 14. axb4 {[%clk 0:02:57]}  cxb3 {[%clk 0:02:45]} 15. c3 {[%clk 0:02:56]}  dxc3 {[%clk 0:02:40]} 16. Bxc3 {[%clk 0:02:57]}  c5 {[%clk 0:02:31]} 17. Qxb3 {[%clk 0:02:53]}  a6 {[%clk 0:01:55]} 18. Qa3 {[%clk 0:02:48]}  Rd8 {[%clk 0:01:14]} 19. bxc5 {[%clk 0:02:35]}  Qxc5 {[%clk 0:01:15]} 20. Nxe5 {[%clk 0:02:27]}  Qxa3 {[%clk 0:01:03]} 21. Rxa3 {[%clk 0:02:24]}  Bb7 {[%clk 0:01:04]} 22. Nc4 {[%clk 0:02:22]}  Nc5 {[%clk 0:01:02]} 23. Re3 {[%clk 0:02:18]}  Ng4 {[%clk 0:00:45]} 24. Rf3 {[%clk 0:02:11]}  Nxd3 {[%clk 0:00:35]} 25. Ba5 {[%clk 0:02:05]}  Bxe4 {[%clk 0:00:25]} 26. Bxd8 {[%clk 0:02:02]}  Rxd8 {[%clk 0:00:26]} 27. Rfxd3 {[%clk 0:01:36]}  Bxd3 {[%clk 0:00:26]} 28. Nb6 {[%clk 0:01:31]}  Bb5 {[%clk 0:00:26]} 29. Ra1 {[%clk 0:01:28]}  h5 {[%clk 0:00:24]} 30. Nd5 {[%clk 0:01:27]}  Rd7 {[%clk 0:00:18]} 31. h3 {[%clk 0:01:26]}  Ne5 {[%clk 0:00:17]} 32. Nb4 {[%clk 0:01:23]}  Nd3 {[%clk 0:00:14]} 33. Nc2 {[%clk 0:01:18]}  Re7 {[%clk 0:00:12]} 34. Nd4 {[%clk 0:01:17]}  g6 {[%clk 0:00:13]} 35. Bf1 {[%clk 0:01:15]}  Rd7 {[%clk 0:00:06]} 36. Nxb5 {[%clk 0:01:10]}  axb5 {[%clk 0:00:07]} 37. Rb1 {[%clk 0:01:08]}  b4 {[%clk 0:00:06]} 38. Rb3 {[%clk 0:01:08]}  Ne5 {[%clk 0:00:06]} 39. Rxb4 {[%clk 0:01:08]}  Kg7 {[%clk 0:00:06]} 40. Kg2 {[%clk 0:01:07]}  Rd2 {[%clk 0:00:07]} 41. Rb3 {[%clk 0:01:01]}  Nc6 {[%clk 0:00:05]} 42. Rc3 {[%clk 0:01:00]}  Nd4 {[%clk 0:00:06]} 43. Bd3 {[%clk 0:00:57]}  Ne6 {[%clk 0:00:05]} 44. Bc4 {[%clk 0:00:57]}  Nc5 {[%clk 0:00:03]} 45. Rf3 {[%clk 0:00:54]}  f6 {[%clk 0:00:03]} 46. h4 {[%clk 0:00:54]}  Ne4 {[%clk 0:00:03]} 47. Rf4 {[%clk 0:00:53]}  f5 {[%clk 0:00:03]} 48. Ba6 {[%clk 0:00:52]}  Kf6 {[%clk 0:00:03]} 49. Bb7 {[%clk 0:00:53]}  Ke5 {[%clk 0:00:03]} 50. Bxe4 {[%clk 0:00:51]}  fxe4 {[%clk 0:00:04]} 51. Rf8 {[%clk 0:00:52]}  Ra2 {[%clk 0:00:01]} 52. Kf1 {[%clk 0:00:50]}  Rb2 {[%clk 0:00:02]} 53. Kg1 {[%clk 0:00:48]}  Ra2 {[%clk 0:00:02]} 54. Kh2 {[%clk 0:00:48]}  e3 {[%clk 0:00:00]} 55. Kg2 {[%clk 0:00:37]} 1-0


[Site "https://www.chess.com"]

[Event "Titled Tuesday Blitz June 27 Early 2023"]
[White "Lenderman, Aleksandr"]
[Black "Jia, Haoxiang"]
[WhiteFideId "2021285"]
[BlackFideId "8602999"]
[WhiteElo "2939"]
[BlackElo "2625"]
[Result "1/2-1/2"]
[Round "4"]
[TimeControl "180+2"]
[Date "2023.06.27"]
[WhiteClock "0:01:40"]
[BlackClock "0:00:37"]
[Board "40"]

1. Nf3 {[%clk 0:03:00]}  c5 {[%clk 0:02:51]} 2. b3 {[%clk 0:03:01]}  b6 {[%clk 0:02:47]} 3. Bb2 {[%clk 0:03:02]}  Bb7 {[%clk 0:02:46]} 4. g3 {[%clk 0:03:03]}  Nf6 {[%clk 0:02:46]} 5. Bg2 {[%clk 0:03:03]}  e6 {[%clk 0:02:46]} 6. O-O {[%clk 0:03:03]}  Be7 {[%clk 0:02:46]} 7. c4 {[%clk 0:02:58]}  O-O {[%clk 0:02:46]} 8. Nc3 {[%clk 0:02:52]}  d6 {[%clk 0:02:37]} 9. d4 {[%clk 0:02:51]}  cxd4 {[%clk 0:02:37]} 10. Qxd4 {[%clk 0:02:52]}  Nbd7 {[%clk 0:02:36]} 11. Rfd1 {[%clk 0:02:52]}  a6 {[%clk 0:02:36]} 12. Qf4 {[%clk 0:02:45]}  Qb8 {[%clk 0:02:26]} 13. Qe3 {[%clk 0:02:34]}  Re8 {[%clk 0:02:13]} 14. Nd4 {[%clk 0:02:34]}  Bxg2 {[%clk 0:02:01]} 15. Kxg2 {[%clk 0:02:35]}  Ne5 {[%clk 0:01:53]} 16. f4 {[%clk 0:02:31]}  Qb7+ {[%clk 0:01:38]} 17. Kg1 {[%clk 0:02:28]}  Neg4 {[%clk 0:01:37]} 18. Qf3 {[%clk 0:02:27]}  Qxf3 {[%clk 0:01:29]} 19. exf3 {[%clk 0:02:28]}  Ne3 {[%clk 0:01:20]} 20. Rd3 {[%clk 0:02:29]}  e5 {[%clk 0:01:18]} 21. Nc6 {[%clk 0:02:24]}  exf4 {[%clk 0:01:16]} 22. gxf4 {[%clk 0:02:22]}  Nf5 {[%clk 0:01:10]} 23. Nd5 {[%clk 0:02:20]}  Nxd5 {[%clk 0:01:07]} 24. Rxd5 {[%clk 0:02:21]}  Nh4 {[%clk 0:00:58]} 25. Kf2 {[%clk 0:02:18]}  Bf8 {[%clk 0:00:56]} 26. Rg1 {[%clk 0:02:13]}  Rac8 {[%clk 0:00:53]} 27. Nd4 {[%clk 0:02:12]}  Ng6 {[%clk 0:00:50]} 28. Nf5 {[%clk 0:02:09]}  Nxf4 {[%clk 0:00:37]} 29. Nh6+ {[%clk 0:02:08]}  Kh8 {[%clk 0:00:37]} 30. Nxf7+ {[%clk 0:02:09]}  Kg8 {[%clk 0:00:37]} 31. Nh6+ {[%clk 0:02:10]}  Kh8 {[%clk 0:00:38]} 32. Nf7+ {[%clk 0:01:39]}  Kg8 {[%clk 0:00:37]} 33. Nh6+ {[%clk 0:01:40]}  Kh8 {[%clk 0:00:37]} 34. Nf7+ {[%clk 0:01:40]} 1/2-1/2


[Site "https://www.chess.com"]

[Event "Titled Tuesday Blitz June 27 Early 2023"]
[White "Bacrot, Etienne"]
[Black "Elgersma, Onno"]
[WhiteFideId "605506"]
[BlackFideId "1053531"]
[WhiteElo "2870"]
[BlackElo "2619"]
[Result "1-0"]
[Round "4"]
[TimeControl "180+2"]
[Date "2023.06.27"]
[WhiteClock "0:00:12"]
[BlackClock "0:00:08"]
[Board "45"]

1. e4 {[%clk 0:03:00]}  c6 {[%clk 0:03:00]} 2. Nf3 {[%clk 0:02:58]}  d5 {[%clk 0:03:00]} 3. d3 {[%clk 0:02:59]}  dxe4 {[%clk 0:02:49]} 4. dxe4 {[%clk 0:02:59]}  Qxd1+ {[%clk 0:02:49]} 5. Kxd1 {[%clk 0:03:00]}  Nf6 {[%clk 0:02:43]} 6. Nfd2 {[%clk 0:02:58]}  h5 {[%clk 0:02:30]} 7. a4 {[%clk 0:02:58]}  h4 {[%clk 0:02:24]} 8. a5 {[%clk 0:02:58]}  g6 {[%clk 0:02:16]} 9. f3 {[%clk 0:02:53]}  Bh6 {[%clk 0:02:10]} 10. Nc4 {[%clk 0:02:35]}  Bxc1 {[%clk 0:02:09]} 11. Kxc1 {[%clk 0:02:36]}  O-O {[%clk 0:02:09]} 12. Nc3 {[%clk 0:02:34]}  Kg7 {[%clk 0:02:02]} 13. Be2 {[%clk 0:02:32]}  Nh5 {[%clk 0:02:02]} 14. Rd1 {[%clk 0:02:30]}  f6 {[%clk 0:01:57]} 15. Bf1 {[%clk 0:02:19]}  Na6 {[%clk 0:01:52]} 16. Ne3 {[%clk 0:01:59]}  Nc7 {[%clk 0:01:50]} 17. Na4 {[%clk 0:01:55]}  b6 {[%clk 0:01:30]} 18. b3 {[%clk 0:01:42]}  Be6 {[%clk 0:01:26]} 19. Kb2 {[%clk 0:01:37]}  Rab8 {[%clk 0:01:26]} 20. Rd2 {[%clk 0:01:24]}  Nf4 {[%clk 0:01:15]} 21. Rad1 {[%clk 0:01:19]}  f5 {[%clk 0:00:55]} 22. g3 {[%clk 0:00:49]}  Nh5 {[%clk 0:00:48]} 23. exf5 {[%clk 0:00:46]}  gxf5 {[%clk 0:00:46]} 24. gxh4 {[%clk 0:00:32]}  Nf4 {[%clk 0:00:46]} 25. Rd4 {[%clk 0:00:22]}  Nfd5 {[%clk 0:00:42]} 26. Nxd5 {[%clk 0:00:19]}  Nxd5 {[%clk 0:00:43]} 27. axb6 {[%clk 0:00:18]}  axb6 {[%clk 0:00:44]} 28. Re1 {[%clk 0:00:18]}  Bf7 {[%clk 0:00:27]} 29. c4 {[%clk 0:00:17]}  b5 {[%clk 0:00:24]} 30. cxd5 {[%clk 0:00:17]}  bxa4 {[%clk 0:00:23]} 31. Rxa4 {[%clk 0:00:17]}  Bxd5 {[%clk 0:00:23]} 32. Bc4 {[%clk 0:00:17]}  Kf6 {[%clk 0:00:20]} 33. Bxd5 {[%clk 0:00:16]}  cxd5 {[%clk 0:00:21]} 34. Ra6+ {[%clk 0:00:16]}  Kf7 {[%clk 0:00:22]} 35. Re5 {[%clk 0:00:16]}  Rg8 {[%clk 0:00:18]} 36. Rxf5+ {[%clk 0:00:16]}  Ke8 {[%clk 0:00:18]} 37. Rg5 {[%clk 0:00:16]}  Rf8 {[%clk 0:00:18]} 38. Rg3 {[%clk 0:00:15]}  Kd7 {[%clk 0:00:18]} 39. Ra7+ {[%clk 0:00:13]}  Kd6 {[%clk 0:00:18]} 40. Rg6+ {[%clk 0:00:14]}  Kc5 {[%clk 0:00:17]} 41. Rc7+ {[%clk 0:00:13]}  Kb4 {[%clk 0:00:15]} 42. Rg4+ {[%clk 0:00:13]}  Kb5 {[%clk 0:00:15]} 43. f4 {[%clk 0:00:12]}  d4 {[%clk 0:00:13]} 44. Rxe7 {[%clk 0:00:12]}  Rfd8 {[%clk 0:00:13]} 45. Rg5+ {[%clk 0:00:11]}  Kb4 {[%clk 0:00:14]} 46. h5 {[%clk 0:00:12]}  Rb6 {[%clk 0:00:10]} 47. h6 {[%clk 0:00:11]}  Rxh6 {[%clk 0:00:10]} 48. Rb7+ {[%clk 0:00:11]}  Rb6 {[%clk 0:00:08]} 49. Rxb6# {[%clk 0:00:12]} 1-0


[Site "https://www.chess.com"]

[Event "Titled Tuesday Blitz June 27 Early 2023"]
[White "Vdovin, Vadim"]
[Black "Galchenko, Matvey"]
[WhiteFideId "24107158"]
[BlackFideId "24175480"]
[WhiteElo "2618"]
[BlackElo "2865"]
[Result "0-1"]
[Round "4"]
[TimeControl "180+2"]
[Date "2023.06.27"]
[WhiteClock "0:00:00"]
[BlackClock "0:02:05"]
[Board "46"]

1. e4 {[%clk 0:03:00]}  e6 {[%clk 0:02:59]} 2. d4 {[%clk 0:03:00]}  d5 {[%clk 0:02:59]} 3. Nc3 {[%clk 0:02:59]}  Bb4 {[%clk 0:02:59]} 4. e5 {[%clk 0:02:59]}  Ne7 {[%clk 0:02:59]} 5. a3 {[%clk 0:02:59]}  Bxc3+ {[%clk 0:02:58]} 6. bxc3 {[%clk 0:03:00]}  c5 {[%clk 0:02:59]} 7. Qg4 {[%clk 0:02:59]}  cxd4 {[%clk 0:02:59]} 8. Bd3 {[%clk 0:02:58]}  Qa5 {[%clk 0:02:58]} 9. Rb1 {[%clk 0:02:56]}  Qxc3+ {[%clk 0:02:54]} 10. Bd2 {[%clk 0:02:56]}  Qc7 {[%clk 0:02:54]} 11. Nf3 {[%clk 0:02:54]}  Nbc6 {[%clk 0:02:47]} 12. O-O {[%clk 0:02:54]}  Bd7 {[%clk 0:02:27]} 13. Rfe1 {[%clk 0:00:00]}  O-O-O {[%clk 0:02:05]} 0-1


[Site "https://www.chess.com"]